bitfinex-derivatives/quotes_SOLF0:USTF0_20250624
["timestamp","ask_amount","ask_price","bid_price","bid_amount"]
[1750775763706,39.08,145.21,145.14,7.24192234]
[1750775764409,45.9629,145.21,145.18,6.8839]
[1750775764610,39.08,145.21,145.14,7.24192234]
[1750775764815,39.08,145.21,145.14,9.52242234]
[1750775764997,39.08,145.21,145.16,6.8849]
[1750775764998,6.884,145.19,145.16,6.8849]
[1750775765202,6.884,145.19,145.14,9.52242234]
[1750775765414,39.08,145.21,145.14,9.52242234]
[1750775766308,39.08,145.21,145.16,7.24192234]
[1750775766507,4.4748,145.23,145.16,7.24192234]
[1750775766805,635.7427,145.24,145.18,7.24192234]
[1750775766998,39.08,145.24,145.18,7.24192234]
[1750775768107,45.9616,145.24,145.21,6.8825]
[1750775768510,45.9616,145.24,145.18,7.24192234]
[1750775768711,39.08,145.24,145.18,7.24192234]
[1750775769213,39.08,145.24,145.22,6.8822]
[1750775770114,45.9614,145.24,145.22,6.8822]
[1750775770414,39.08,145.24,145.23,6.8818]
[1750775770713,6.8811,145.25,145.23,6.8818]
[1750775771010,6.8811,145.25,145.17,2.3724]
[1750775771011,43.89,145.27,145.24,6.8813]
[1750775771205,43.89,145.27,145.2,39.08]
[1750775771410,43.89,145.27,145.21,6.8826]
[1750775771810,43.89,145.27,145.2,39.08]
[1750775772006,43.89,145.27,145.21,6.8825]
[1750775772205,6.8816,145.24,145.21,6.8825]
[1750775772515,43.89,145.27,145.21,6.8825]
[1750775772516,39.08,145.27,145.25,6.8806]
[1750775772708,39.08,145.3,145.21,7.24192234]
[1750775772909,6.8796,145.28,145.21,7.24192234]
[1750775773110,6.8796,145.28,145.25,6.8804]
[1750775773312,6.8796,145.28,145.21,7.24192234]
[1750775773515,45.9586,145.3,145.23,7.24192234]
[1750775773716,39.08,145.3,145.23,7.24192234]
[1750775774108,6.8782,145.31,145.28,6.879]
[1750775774606,6.8776,145.32,145.25,7.24192234]
[1750775774807,38.94,145.33,145.25,11.83282234]
[1750775775210,6.8783,145.31,145.28,6.8792]
[1750775775413,38.94,145.33,145.25,11.83282234]
[1750775775820,6.8783,145.31,145.28,6.8792]
[1750775776220,38.94,145.33,145.25,11.83282234]
[1750775776422,38.94,145.33,145.25,9.43142234]
[1750775776616,38.94,145.33,145.25,2.1895]
[1750775776814,46.18192234,145.33,145.24,38.94]
[1750775778511,6.8791,145.29,145.26,6.8802]
[1750775780526,6.8791,145.29,145.27,6.8798]
[1750775780721,38.94,145.33,145.25,7.24192234]
[1750775781324,6.8786,145.3,145.27,6.8796]
[1750775781626,38.94,145.33,145.25,7.24192234]
[1750775781826,6.8795,145.28,145.26,6.8801]
[1750775782026,46.18192234,145.33,145.26,6.8801]
[1750775782526,6.8789,145.3,145.27,6.8799]
[1750775783127,6.8781,145.31,145.28,6.8794]
[1750775783427,38.94,145.33,145.28,6.8794]
[1750775783628,6.8784,145.31,145.28,6.8794]
[1750775785236,43.2776771,145.33,145.25,4.3376771]
[1750775785635,43.2776771,145.33,145.26,6.8801]
[1750775785636,6.8794,145.29,145.26,6.8801]
[1750775786229,6.8795,145.28,145.26,6.8801]
[1750775786539,38.92,145.29,145.22,4.3376771]
[1750775786838,43.2576771,145.29,145.22,4.3376771]
[1750775787240,6.8805,145.26,145.22,4.3376771]
[1750775787434,43.2576771,145.29,145.22,4.3376771]
[1750775787837,6.8809,145.25,145.2,47.8940771]
[1750775788036,4.4345,145.28,145.2,47.8940771]
[1750775788237,4.4345,145.28,145.2,45.4851771]
[1750775788533,4.3376771,145.27,145.2,43.2576771]
[1750775788940,4.3376771,145.27,145.2,4.3376771]
[1750775789240,6.8816,145.24,145.21,6.8824]
[1750775789535,4.3376771,145.27,145.21,6.8824]
[1750775790034,4.3376771,145.25,145.16,12.65193988]
[1750775790236,7.24028903,145.23,145.15,2.2124]
[1750775790532,7.24028903,145.23,145.17,6.8844]
[1750775790533,38.94,145.22,145.17,6.8844]
[1750775790736,6.8833,145.2,145.17,6.8844]
[1750775791138,38.94,145.22,145.17,6.8844]
[1750775791334,6.8835,145.2,145.17,6.8844]
[1750775791734,38.94,145.22,145.15,2.2124]
[1750775792335,38.94,145.22,145.18,6.8841]
[1750775792535,6.8833,145.2,145.15,2.2124]
[1750775793342,6.883,145.21,145.18,6.8841]
[1750775794044,6.8833,145.2,145.17,6.8844]
[1750775794548,6.8838,145.19,145.17,6.8844]
[1750775794938,38.94,145.22,145.18,6.884]
[1750775795247,6.883,145.21,145.18,6.884]
[1750775796049,6.8833,145.2,145.18,6.884]
[1750775796537,6.883,145.21,145.18,6.884]
[1750775797040,6.8835,145.2,145.17,6.8845]
[1750775797247,6.8835,145.2,145.15,2.2124]
[1750775797447,38.94,145.22,145.15,2.2124]
[1750775797643,6.8838,145.19,145.15,2.2124]
[1750775797850,6.8838,145.19,145.14,46.18028903]
[1750775798440,6.8838,145.19,145.16,6.8848]
[1750775798642,7.24028903,145.21,145.14,38.94]
[1750775798841,38.94,145.22,145.18,6.8838]
[1750775799040,6.883,145.21,145.18,6.8838]
[1750775800146,38.94,145.22,145.16,7.24028903]
[1750775800448,7.24028903,145.27,145.16,7.24028903]
[1750775800647,45.7554,145.28,145.2,7.24028903]
[1750775801049,6.8808,145.26,145.22,6.8821]
[1750775801251,45.7554,145.28,145.2,7.24028903]
[1750775801652,6.8806,145.26,145.2,7.24028903]
[1750775802854,6.881,145.25,145.22,6.8821]
[1750775803245,6.881,145.25,145.2,7.24028903]
[1750775803446,45.7554,145.28,145.2,7.24028903]
[1750775804654,6.8806,145.26,145.2,7.24028903]
[1750775804855,45.7554,145.28,145.2,7.24028903]
[1750775805051,45.7554,145.28,145.22,6.882]
[1750775805348,45.7554,145.28,145.2,7.24028903]
[1750775805554,7.24028903,145.27,145.18,7.24028903]
[1750775805756,7.24028903,145.27,145.16,38.78]
[1750775805946,7.24028903,145.27,145.16,54.37736666]
[1750775806254,6.8825,145.22,145.16,54.37736666]
[1750775806455,38.78,145.24,145.16,54.37736666]
[1750775806648,38.78,145.24,145.18,7.24028903]
[1750775807057,6.8821,145.23,145.18,7.24028903]
[1750775807255,38.78,145.24,145.18,7.24028903]
[1750775807651,38.78,145.24,145.22,6.8821]
[1750775807851,38.78,145.24,145.17,15.59736666]
[1750775808051,38.78,145.24,145.17,7.24028903]
[1750775808959,6.8826,145.22,145.19,6.8835]
[1750775809159,38.78,145.24,145.17,7.24028903]
[1750775809356,38.78,145.24,145.16,38.78]
[1750775809559,6.8831,145.21,145.18,6.8841]
[1750775810660,6.8825,145.22,145.19,6.8836]
[1750775811360,38.78,145.24,145.2,6.8831]
[1750775811958,6.8823,145.22,145.2,6.8831]
[1750775812460,43.12307357,145.24,145.16,51.4801512]
[1750775812863,43.12307357,145.24,145.2,6.8832]
[1750775813053,43.12307357,145.24,145.16,51.4801512]
[1750775813455,45.6615,145.24,145.18,4.34307357]
[1750775813653,38.78,145.24,145.18,4.34307357]
[1750775813858,38.78,145.24,145.22,6.8821]
[1750775815162,38.78,145.24,145.23,6.8818]
[1750775815363,38.78,145.24,145.19,4.34153787]
[1750775816064,38.78,145.24,145.22,6.8819]
[1750775816265,38.78,145.24,145.19,4.34153787]
[1750775816465,38.78,145.24,145.22,6.8821]
[1750775817661,45.6614,145.24,145.22,6.8821]
[1750775818062,38.78,145.24,145.19,4.34134221]
[1750775818459,38.78,145.24,145.2,6.8829]
[1750775818658,6.8821,145.23,145.2,6.8829]
[1750775818859,6.8821,145.23,145.19,4.34134221]
[1750775819061,6.8821,145.23,145.2,6.8829]
[1750775819260,6.8821,145.23,145.19,4.34134221]
[1750775819461,6.8821,145.23,145.2,6.883]
[1750775819662,38.78,145.24,145.19,4.34134221]
[1750775819663,45.6615,145.24,145.19,4.34134221]
[1750775819965,38.78,145.24,145.19,4.34134221]
[1750775820768,6.8821,145.23,145.19,4.34134221]
[1750775821467,38.78,145.24,145.19,4.34134221]
[1750775821875,43.12134221,145.27,145.22,6.8822]
[1750775822065,43.12134221,145.27,145.19,4.34134221]
[1750775822769,6.8816,145.24,145.22,6.8822]
[1750775823164,6.8811,145.25,145.22,6.8822]
[1750775825575,43.12134221,145.27,145.23,6.8816]
[1750775825879,43.12134221,145.27,145.19,12.69841984]
[1750775826068,6.8817,145.24,145.19,12.69841984]
[1750775826572,43.12134221,145.27,145.19,12.69841984]
[1750775826573,6.8811,145.25,145.19,12.69841984]
[1750775826874,43.12134221,145.27,145.19,12.69841984]
[1750775827070,45.6602,145.27,145.24,6.8811]
[1750775827271,45.6602,145.27,145.2,4.34100305]
[1750775827272,38.78,145.28,145.22,4.34100305]
[1750775827469,38.78,145.28,145.22,12.69808068]
[1750775827673,45.6598,145.28,145.25,6.8804]
[1750775827873,38.78,145.28,145.23,4.33890471]
[1750775828374,4.33890471,145.27,145.21,8.35707763]
[1750775828575,4.33890471,145.27,145.2,53.84378234]
[1750775829168,38.78,145.28,145.2,53.84378234]
[1750775829169,38.78,145.28,145.21,8.35707763]
[1750775829369,38.78,145.28,145.24,6.8809]
[1750775829980,6.8803,145.27,145.25,6.8807]
[1750775830169,38.78,145.28,145.22,12.69598234]
[1750775830369,38.78,145.28,145.23,12.69598234]
[1750775830970,45.6597,145.28,145.23,12.69598234]
[1750775831270,45.6597,145.28,145.24,8.35707763]
[1750775831476,6.88,145.27,145.25,6.8806]
[1750775832378,38.78,145.28,145.22,8.35707763]
[1750775832579,38.78,145.28,145.21,8.35707763]
[1750775832893,6.8811,145.25,145.22,6.8821]
[1750775834078,6.8811,145.25,145.22,15.23917763]
[1750775834671,6.8811,145.25,145.22,6.8821]
[1750775835980,6.8814,145.24,145.22,6.8821]
[1750775836178,38.78,145.28,145.22,6.8821]
[1750775836769,6.8812,145.25,145.22,6.8821]
[1750775837577,6.8823,145.22,145.21,8.35707763]
[1750775837777,11.35370471,145.27,145.2,6.8829]
[1750775838567,6.8823,145.22,145.19,15.24047763]
[1750775838777,38.6,145.24,145.19,15.24047763]
[1750775838971,38.6,145.24,145.19,6.8834]
[1750775839168,6.8826,145.22,145.19,15.24047763]
[1750775839584,38.6,145.24,145.19,8.35707763]
[1750775839585,6.8832,145.21,145.19,8.35707763]
[1750775839876,38.6,145.24,145.18,8.35707763]
[1750775840070,38.6,145.24,145.19,6.8835]
[1750775840271,6.8825,145.22,145.19,6.8835]
[1750775840683,38.6,145.24,145.18,15.24107763]
[1750775840980,6.8832,145.21,145.18,15.24107763]
[1750775841485,4.33890471,145.23,145.18,8.35707763]
[1750775841678,4.33890471,145.21,145.16,8.35707763]
[1750775841875,38.6,145.2,145.15,8.35707763]
[1750775842477,6.8844,145.18,145.15,15.24247763]
[1750775842670,38.6,145.2,145.15,8.35707763]
[1750775843072,6.8839,145.19,145.15,8.35707763]
[1750775843977,6.8839,145.19,145.16,6.8849]
[1750775844380,38.6,145.2,145.16,6.8849]
[1750775845077,38.6,145.2,145.17,6.8845]
[1750775845482,45.4835,145.2,145.17,6.8845]
[1750775846375,38.6,145.2,145.15,8.35707763]
[1750775846579,38.6,145.23,145.17,8.35707763]
[1750775846978,38.6,145.23,145.18,4.33890471]
[1750775847288,38.6,145.26,145.2,4.33890471]
[1750775847486,38.6,145.26,145.23,6.8818]
[1750775847787,38.6,145.26,145.2,12.69598234]
[1750775848182,45.4806,145.26,145.23,6.8815]
[1750775848891,6.8809,145.25,145.23,6.8815]
[1750775849088,38.6,145.26,145.23,6.8815]
[1750775849389,38.6,145.26,145.2,12.69598234]
[1750775849690,38.6,145.26,145.22,4.33890471]
[1750775850177,6.8809,145.25,145.22,11.22100471]
[1750775850381,6.8809,145.25,145.22,6.8821]
[1750775850791,45.4806,145.26,145.23,6.8818]
[1750775851191,38.6,145.26,145.21,8.35707763]
[1750775851392,6.8809,145.25,145.22,6.8819]
[1750775851880,6.8809,145.25,145.21,4.33890471]
[1750775852084,45.4806,145.26,145.23,6.8818]
[1750775852783,6.881,145.25,145.22,6.8821]
[1750775853789,6.881,145.25,145.23,6.8818]
[1750775853996,38.6,145.26,145.21,4.33890471]
[1750775854394,6.8814,145.24,145.21,11.22140471]
[1750775854896,38.6,145.26,145.21,11.22140471]
[1750775855289,38.6,145.26,145.21,4.33890471]
[1750775855792,38.6,145.26,145.21,12.69598234]
[1750775856099,38.6,145.26,145.21,8.35707763]
[1750775856396,6.8816,145.24,145.2,12.69598234]
[1750775856796,6.8816,145.24,145.21,6.8825]
[1750775857502,6.8816,145.24,145.22,6.8823]
[1750775858302,6.8821,145.23,145.2,8.35707763]
[1750775858597,38.6,145.26,145.19,4.33890471]
[1750775858794,6.8814,145.24,145.19,4.33890471]
[1750775858994,38.6,145.26,145.2,6.8829]
[1750775859202,4.33890471,145.25,145.18,8.35707763]
[1750775859397,6.8834,145.2,145.17,19.58038234]
[1750775859597,6.8834,145.2,145.17,11.22330471]
[1750775859997,6.8834,145.2,145.18,6.8841]
[1750775860204,6.8834,145.2,145.17,4.33890471]
[1750775860996,6.8834,145.2,145.17,11.22330471]
[1750775861705,6.883,145.21,145.17,4.33890471]
[1750775862199,38.6,145.22,145.17,12.69598234]
[1750775862407,38.6,145.22,145.17,4.33890471]
[1750775862604,6.883,145.21,145.17,12.69598234]
[1750775862807,38.6,145.22,145.17,12.69598234]
[1750775862997,38.6,145.22,145.16,8.35707763]
[1750775863194,38.6,145.22,145.18,6.8841]
[1750775863600,6.883,145.21,145.18,6.8841]
[1750775865109,6.8832,145.2,145.18,6.8841]
[1750775865807,6.8832,145.2,145.17,6.8844]
[1750775866006,38.6,145.22,145.15,12.69598234]
[1750775866211,4.33890471,145.21,145.14,8.35707763]
[1750775866412,11.32360471,145.21,145.14,8.35707763]
[1750775866812,11.32360471,145.21,145.13,8.35707763]
[1750775867111,4.33890471,145.19,145.12,8.35707763]
[1750775867311,38.4,145.18,145.11,8.35707763]
[1750775867511,6.8859,145.15,145.12,6.8867]
[1750775868214,6.8859,145.15,145.13,6.8865]
[1750775868412,6.8854,145.16,145.13,6.8865]
[1750775868916,38.4,145.18,145.13,6.8865]
[1750775869611,38.4,145.18,145.11,8.35707763]
[1750775869914,38.4,145.18,145.12,4.33890471]
[1750775870115,45.2844,145.18,145.15,6.8853]
[1750775871919,38.4,145.18,145.16,6.8849]
[1750775873116,38.4,145.18,145.17,6.8847]
[1750775875308,6.884,145.19,145.17,6.8847]
[1750775875513,38.4,145.21,145.16,4.33890471]
[1750775876521,38.4,145.21,145.18,4.33890471]
[1750775876919,38.4,145.24,145.18,4.33890471]
[1750775877427,38.4,145.24,145.2,4.33890471]
[1750775877926,6.8811,145.25,145.2,4.33890471]
[1750775878314,6.8811,145.25,145.22,6.882]
[1750775878718,6.8814,145.24,145.22,6.882]
[1750775878918,6.8814,145.24,145.21,6.8825]
[1750775880322,6.8814,145.24,145.22,6.8823]
[1750775880723,6.8814,145.24,145.2,4.33890471]
[1750775881022,6.8814,145.24,145.21,6.8825]
[1750775881220,8.80650471,145.26,145.18,8.35707763]
[1750775881414,8.80650471,145.26,145.2,6.883]
[1750775882628,6.8815,145.24,145.21,6.8826]
[1750775883123,6.8811,145.25,145.22,6.8819]
[1750775883315,4.4676,145.26,145.2,4.33890471]
[1750775883516,6.8816,145.24,145.21,6.8825]
[1750775884025,6.8821,145.23,145.2,6.8831]
[1750775884225,8.80650471,145.26,145.2,6.8831]
[1750775884724,8.80650471,145.26,145.19,6.8836]
[1750775884921,8.80650471,145.26,145.18,4.33890471]
[1750775885121,6.8826,145.22,145.18,4.33890471]
[1750775885313,6.8826,145.22,145.19,6.8835]
[1750775885518,38.4,145.23,145.17,8.35707763]
[1750775885719,38.4,145.23,145.2,6.8829]
[1750775886218,38.4,145.23,145.18,4.33890471]
[1750775886418,38.4,145.23,145.19,6.8833]
[1750775886618,38.4,145.23,145.18,4.33890471]
[1750775887218,38.4,145.23,145.19,6.8834]
[1750775887426,6.8823,145.22,145.18,4.33890471]
[1750775887730,38.4,145.23,145.18,4.33890471]
[1750775888119,45.2821,145.23,145.18,4.33890471]
[1750775888424,45.2821,145.23,145.2,6.8832]
[1750775888732,6.8823,145.22,145.18,4.33890471]
[1750775889030,38.4,145.23,145.19,6.8835]
[1750775889330,6.8824,145.22,145.19,6.8835]
[1750775889529,38.4,145.23,145.18,4.33890471]
[1750775889726,42.8676,145.26,145.2,4.33890471]
[1750775890028,6.8816,145.24,145.2,4.33890471]
[1750775890328,6.8816,145.24,145.21,6.8825]
[1750775890924,47.20650471,145.26,145.19,8.35707763]
[1750775891132,47.20650471,145.26,145.17,12.69598234]
[1750775891326,6.8816,145.24,145.21,6.8823]
[1750775891531,6.8816,145.24,145.2,4.34175528]
[1750775891830,42.8676,145.26,145.2,4.34175528]
[1750775892030,42.8676,145.26,145.21,6.8824]
[1750775892417,6.8816,145.24,145.21,6.8824]
[1750775892624,42.8676,145.26,145.21,6.8824]
[1750775892819,42.8676,145.26,145.2,11.22475528]
[1750775893032,42.8676,145.26,145.2,6.883]
[1750775893329,4.34175528,145.25,145.2,6.883]
[1750775893534,4.34175528,145.25,145.17,12.69883291]
[1750775893738,6.8821,145.23,145.17,4.34175528]
[1750775894034,6.8821,145.23,145.17,12.69883291]
[1750775894440,6.8823,145.22,145.19,6.8834]
[1750775895036,38.18,145.22,145.16,8.35707763]
[1750775895240,38.18,145.22,145.15,19.54513291]
[1750775895530,38.18,145.22,145.18,6.8839]
[1750775895733,38.18,145.22,145.16,8.35707763]
[1750775895931,38.18,145.22,145.17,8.35707763]
[1750775896135,38.18,145.22,145.16,12.69883291]
[1750775896136,45.0625,145.22,145.16,12.69883291]
[1750775896329,38.18,145.22,145.16,8.35707763]
[1750775896531,38.18,145.22,145.15,19.54513291]
[1750775897042,38.18,145.22,145.17,6.8842]
[1750775897229,38.18,145.22,145.15,19.54513291]
[1750775897429,38.18,145.22,145.17,6.8844]
[1750775897632,38.18,145.22,145.14,8.35707763]
[1750775897936,6.8834,145.2,145.16,6.8848]
[1750775898125,38.18,145.22,145.16,6.8848]
[1750775898529,6.8837,145.19,145.16,6.8848]
[1750775898936,38.18,145.22,145.15,15.24257763]
[1750775899241,6.8833,145.2,145.15,8.35707763]
[1750775899441,38.18,145.22,145.16,6.8849]
[1750775899741,6.884,145.19,145.16,6.8849]
[1750775900141,38.18,145.22,145.15,8.35707763]
[1750775900440,6.8833,145.2,145.15,8.35707763]
[1750775900632,6.8833,145.2,145.16,6.8849]
[1750775900836,6.8833,145.2,145.15,8.35707763]
[1750775901140,6.8837,145.19,145.16,6.8849]
[1750775901530,6.8837,145.19,145.15,12.69883291]
[1750775901732,6.8837,145.19,145.16,6.8849]
[1750775902031,38.18,145.22,145.17,4.34175528]
[1750775902232,38.18,145.22,145.18,6.8839]
[1750775902433,38.18,145.22,145.17,4.34175528]
[1750775902736,42.52175528,145.31,145.21,12.69883291]
[1750775902945,4.6422,145.3,145.24,6.881]
[1750775903433,4.6422,145.3,145.23,6.8816]
[1750775903640,6.8802,145.27,145.21,12.69883291]
[1750775904441,6.8802,145.27,145.24,6.8813]
[1750775905037,6.8802,145.27,145.23,6.8816]
[1750775905337,6.8802,145.27,145.22,4.34175528]
[1750775905338,38.18,145.27,145.2,8.35707763]
[1750775905541,38.18,145.27,145.21,6.8825]
[1750775906038,38.18,145.27,145.19,4.34175528]
[1750775906039,4.34175528,145.26,145.19,4.34175528]
[1750775906542,6.882,145.23,145.2,6.883]
[1750775906741,4.34175528,145.26,145.19,4.34175528]
[1750775907141,4.34175528,145.26,145.19,11.22525528]
[1750775907445,4.34175528,145.26,145.19,4.34175528]
[1750775907743,6.882,145.23,145.2,6.883]
[1750775908041,6.8814,145.24,145.21,6.8823]
[1750775908248,38.18,145.27,145.23,4.34175528]
[1750775909343,6.8811,145.25,145.23,4.34175528]
[1750775910145,6.8811,145.25,145.23,11.22345528]
[1750775910347,6.8806,145.26,145.23,11.22345528]
[1750775910942,6.8806,145.26,145.23,6.8817]
[1750775911147,38.18,145.27,145.22,11.22375528]
[1750775911947,38.18,145.27,145.22,4.34175528]
[1750775912148,6.8816,145.24,145.22,4.34175528]
[1750775912649,6.8819,145.23,145.21,6.8825]
[1750775913048,38.18,145.27,145.2,4.34175528]
[1750775913447,38.18,145.27,145.2,11.22475528]
[1750775915456,38.18,145.27,145.19,8.35707763]
[1750775915654,4.34175528,145.26,145.18,4.34175528]
[1750775915841,4.34175528,145.26,145.18,12.69883291]
[1750775916150,38.18,145.27,145.2,4.34175528]
[1750775916348,6.8812,145.25,145.2,12.69883291]
[1750775916545,2.2009,145.29,145.22,4.34175528]
[1750775916745,6.8784,145.31,145.26,4.34175528]
[1750775916951,6.8784,145.31,145.28,4.34175528]
[1750775917146,38.18,145.33,145.25,8.35707763]
[1750775917345,6.8788,145.3,145.26,4.34175528]
[1750775917566,6.8788,145.3,145.26,11.22185528]
[1750775917941,6.8788,145.3,145.26,4.34175528]
[1750775918143,38.18,145.33,145.28,6.8794]
[1750775918347,38.18,145.33,145.28,4.34175528]
[1750775919054,44.9715,145.36,145.32,4.34175528]
[1750775921151,44.9715,145.36,145.3,4.34175528]
[1750775921748,6.8774,145.33,145.3,4.34175528]
[1750775922653,6.8776,145.32,145.28,11.22095528]
[1750775922848,6.8776,145.32,145.28,4.34175528]
[1750775923249,6.8772,145.33,145.29,6.8787]
[1750775924462,4.34175528,145.34,145.26,4.34175528]
[1750775924751,4.34175528,145.35,145.26,4.34175528]
[1750775924955,4.34175528,145.35,145.27,6.8798]
[1750775925357,6.8785,145.31,145.27,6.8798]
[1750775925541,6.8785,145.31,145.26,4.34175528]
[1750775925852,6.8786,145.3,145.27,4.33683506]
[1750775926447,6.8782,145.31,145.27,4.33683506]
[1750775926655,38.0,145.32,145.27,4.33683506]
[1750775927444,38.0,145.32,145.26,6.8802]
[1750775929157,38.0,145.32,145.29,4.33683506]
[1750775929455,4.33683506,145.44,145.24,46.35707763]
[1750775929456,6.8731,145.42,145.31,4.33196945]
[1750775929660,9.01356945,145.45,145.37,4.33196945]
[1750775930046,6.8735,145.41,145.38,6.8746]
[1750775930251,6.8735,145.41,145.36,7.21822004]
[1750775930653,6.8738,145.4,145.37,6.8749]
[1750775930861,38.0,145.42,145.37,6.8749]
[1750775931050,38.0,145.42,145.36,7.21822004]
[1750775931856,6.874,145.4,145.36,7.21822004]
[1750775932656,6.874,145.4,145.37,6.875]
[1750775933161,38.0,145.42,145.36,7.21822004]
[1750775933759,6.8738,145.4,145.37,6.8749]
[1750775934154,44.873,145.42,145.39,6.874]
[1750775934356,12.48646902,145.46,145.38,7.21822004]
[1750775934755,6.8729,145.42,145.39,6.874]
[1750775935162,12.48646902,145.46,145.38,7.21822004]
[1750775935664,6.8724,145.43,145.4,6.8734]
[1750775935857,12.48646902,145.46,145.38,7.21822004]
[1750775936561,6.8727,145.43,145.4,6.8735]
[1750775938360,6.8727,145.43,145.39,6.874]
[1750775938760,6.8727,145.43,145.38,7.21822004]
[1750775939068,6.8728,145.42,145.39,6.8741]
[1750775939265,37.98,145.43,145.32,6.8799]
[1750775939466,11.97632004,145.42,145.32,6.8799]
[1750775939669,14.22542004,145.42,145.33,7.21822004]
[1750775939865,7.0072,145.42,145.33,7.21822004]
[1750775940263,7.0072,145.42,145.35,6.8759]
[1750775940468,7.21822004,145.38,145.28,40.3881]
[1750775940664,37.98,145.37,145.28,40.3881]
[1750775940862,6.8764,145.35,145.31,6.8776]
[1750775941567,37.98,145.37,145.29,7.21822004]
[1750775941768,37.98,145.37,145.31,7.21822004]
[1750775942772,37.98,145.41,145.33,7.21822004]
[1750775942965,37.98,145.41,145.33,45.19822004]
[1750775943171,37.98,145.41,145.35,7.21822004]
[1750775943672,6.874,145.4,145.37,6.875]
[1750775944771,6.8743,145.39,145.37,6.875]
[1750775944970,37.98,145.41,145.34,7.22021504]
[1750775945271,6.8752,145.37,145.32,7.22021504]
[1750775945468,45.20021504,145.41,145.32,7.22021504]
[1750775945673,7.22021504,145.39,145.3,37.98]
[1750775946172,7.22021504,145.39,145.31,6.8778]
[1750775946559,7.22021504,145.37,145.3,6.8785]
[1750775946771,37.98,145.36,145.3,6.8785]
[1750775946970,6.8769,145.34,145.28,2.4081]
[1750775947271,37.98,145.36,145.28,2.4081]
[1750775947475,6.8765,145.35,145.29,7.22021504]
[1750775947868,6.8765,145.35,145.31,6.8778]
[1750775948065,6.8766,145.34,145.31,6.8778]
[1750775948576,6.8764,145.35,145.32,6.8775]
[1750775948767,6.8764,145.35,145.28,9.62831504]
[1750775949075,6.8764,145.35,145.31,6.8778]
[1750775949267,6.8766,145.34,145.31,6.8778]
[1750775949773,6.8778,145.32,145.27,47.45441504]
[1750775949975,11.93201504,145.35,145.27,7.22021504]
[1750775950176,7.22021504,145.33,145.25,6.8806]
[1750775950365,6.8797,145.28,145.23,7.22021504]
[1750775950675,37.98,145.32,145.23,7.22021504]
[1750775950874,37.98,145.32,145.25,6.8809]
[1750775951074,7.22021504,145.29,145.2,2.2533]
[1750775951270,42.6918,145.28,145.2,6.8831]
[1750775951474,44.9738,145.28,145.18,45.20021504]
[1750775951876,6.8812,145.25,145.21,6.8826]
[1750775952074,6.8812,145.25,145.18,45.20021504]
[1750775952276,44.9738,145.28,145.18,45.20021504]
[1750775953175,6.8815,145.24,145.21,6.8824]
[1750775953376,44.9738,145.28,145.18,45.20021504]
[1750775953978,44.9738,145.28,145.2,7.23419593]
[1750775954476,6.8807,145.26,145.23,6.8818]
[1750775954677,44.9738,145.28,145.2,7.23419593]
[1750775955070,6.8812,145.25,145.2,7.23419593]
[1750775955672,6.8812,145.25,145.22,6.882]
[1750775956476,6.8814,145.24,145.21,6.8824]
[1750775956879,44.9738,145.28,145.2,7.23419593]
[1750775957579,6.8808,145.26,145.2,7.23419593]
[1750775958178,6.8808,145.26,145.23,6.8817]
[1750775958583,6.8801,145.27,145.2,7.23419593]
[1750775958778,44.9738,145.28,145.2,7.23419593]
[1750775959184,6.8802,145.27,145.24,6.8813]
[1750775959477,44.9738,145.28,145.2,7.23419593]
[1750775959782,44.9738,145.28,145.2,7.23360416]
[1750775959984,6.8807,145.26,145.23,6.8817]
[1750775960184,44.9738,145.28,145.2,7.23360416]